[Event "Titled Tuesday Blitz November 22 Early 2022"]
[White "Narayanan, Srinath"]
[Black "Mohammed, Zozek Salah Mohammed"]
[WhiteFideId "5018420"]
[BlackFideId "4803361"]
[WhiteElo "2459"]
[BlackElo "2199"]
[Result "1-0"]
[Round "08"]
[TimeControl "180+1"]
[Date "2022.11.23"]
[WhiteClock "0:02:00"]
[BlackClock "0:00:27"]

1. d4 {[%clk 0:03:00]}  d5 {[%clk 0:02:59]} 2. Bf4 {[%clk 0:03:01]}  c5 {[%clk 0:02:57]} 3. e3 {[%clk 0:03:01]}  Nc6 {[%clk 0:02:57]} 4. Nf3 {[%clk 0:03:01]}  Qb6 {[%clk 0:02:56]} 5. Nbd2 {[%clk 0:03:00]}  e6 {[%clk 0:02:55]} 6. dxc5 {[%clk 0:02:54]}  Bxc5 {[%clk 0:02:53]} 7. c4 {[%clk 0:02:55]}  Nf6 {[%clk 0:02:52]} 8. Qb3 {[%clk 0:02:52]}  Qxb3 {[%clk 0:02:50]} 9. Nxb3 {[%clk 0:02:51]}  Bb4+ {[%clk 0:02:49]} 10. Nfd2 {[%clk 0:02:52]}  e5 {[%clk 0:02:46]} 11. Bg3 {[%clk 0:02:50]}  Be6 {[%clk 0:02:45]} 12. cxd5 {[%clk 0:02:47]}  Nxd5 {[%clk 0:02:42]} 13. a3 {[%clk 0:02:46]}  Be7 {[%clk 0:02:37]} 14. Rc1 {[%clk 0:02:46]}  O-O {[%clk 0:02:32]} 15. Bb5 {[%clk 0:02:44]}  Rac8 {[%clk 0:02:30]} 16. Bxc6 {[%clk 0:02:42]}  bxc6 {[%clk 0:02:24]} 17. Bxe5 {[%clk 0:02:42]}  c5 {[%clk 0:02:22]} 18. Na5 {[%clk 0:02:37]}  Nb6 {[%clk 0:02:09]} 19. O-O {[%clk 0:02:33]}  Rfd8 {[%clk 0:02:06]} 20. Ndc4 {[%clk 0:02:27]}  f6 {[%clk 0:02:00]} 21. Bf4 {[%clk 0:02:26]}  g5 {[%clk 0:01:59]} 22. Bg3 {[%clk 0:02:26]}  Kf7 {[%clk 0:01:54]} 23. Rfe1 {[%clk 0:02:25]}  h5 {[%clk 0:01:52]} 24. h3 {[%clk 0:02:26]}  Rd3 {[%clk 0:01:06]} 25. h4 {[%clk 0:02:19]}  Nxc4 {[%clk 0:00:57]} 26. Nxc4 {[%clk 0:02:19]}  gxh4 {[%clk 0:00:49]} 27. Bxh4 {[%clk 0:02:17]}  Bxc4 {[%clk 0:00:47]} 28. Rxc4 {[%clk 0:02:18]}  Rb8 {[%clk 0:00:48]} 29. Rc2 {[%clk 0:02:17]}  Rdb3 {[%clk 0:00:46]} 30. Ree2 {[%clk 0:02:17]}  Bd6 {[%clk 0:00:41]} 31. f4 {[%clk 0:02:11]}  Rd3 {[%clk 0:00:37]} 32. Bf2 {[%clk 0:02:07]}  a5 {[%clk 0:00:33]} 33. Red2 {[%clk 0:02:04]}  Rxd2 {[%clk 0:00:30]} 34. Rxd2 {[%clk 0:02:04]}  Ke6 {[%clk 0:00:30]} 35. f5+ {[%clk 0:01:59]}  Ke7 {[%clk 0:00:28]} 36. Rxd6 {[%clk 0:02:00]}  Kxd6 {[%clk 0:00:27]} 37. Bg3+ {[%clk 0:02:00]} 1-0


[Site "https://www.chess.com"]

[Event "Titled Tuesday Blitz November 22 Early 2022"]
[White "Nguyen Hong Nhung"]
[Black "Le Goff, Damien"]
[WhiteFideId "12412201"]
[BlackFideId "634808"]
[WhiteElo "1904"]
[BlackElo "2407"]
[Result "1/2-1/2"]
[Round "08"]
[TimeControl "180+1"]
[Date "2022.11.23"]
[WhiteClock "0:00:44"]
[BlackClock "0:01:30"]

1. e4 {[%clk 0:03:00]}  c5 {[%clk 0:02:59]} 2. Nc3 {[%clk 0:03:00]}  d6 {[%clk 0:02:59]} 3. f4 {[%clk 0:02:59]}  g6 {[%clk 0:02:58]} 4. Nf3 {[%clk 0:03:00]}  Bg7 {[%clk 0:02:58]} 5. Bc4 {[%clk 0:03:01]}  Nc6 {[%clk 0:02:57]} 6. O-O {[%clk 0:03:01]}  e6 {[%clk 0:02:55]} 7. d3 {[%clk 0:03:01]}  Nge7 {[%clk 0:02:50]} 8. Qe1 {[%clk 0:03:01]}  h6 {[%clk 0:02:46]} 9. Qh4 {[%clk 0:02:57]}  d5 {[%clk 0:02:43]} 10. exd5 {[%clk 0:02:54]}  exd5 {[%clk 0:02:37]} 11. Bxd5 {[%clk 0:02:36]}  O-O {[%clk 0:01:58]} 12. Bb3 {[%clk 0:02:31]}  Nd4 {[%clk 0:01:51]} 13. Nxd4 {[%clk 0:02:30]}  Qxd4+ {[%clk 0:01:48]} 14. Kh1 {[%clk 0:02:28]}  Nf5 {[%clk 0:01:48]} 15. Qf2 {[%clk 0:02:25]}  Qd6 {[%clk 0:01:46]} 16. Bd2 {[%clk 0:02:20]}  Bd4 {[%clk 0:01:44]} 17. Qf3 {[%clk 0:02:19]}  Bd7 {[%clk 0:01:42]} 18. Bd5 {[%clk 0:02:02]}  Nh4 {[%clk 0:01:31]} 19. Qg3 {[%clk 0:01:57]}  Nf5 {[%clk 0:01:31]} 20. Qf3 {[%clk 0:01:50]}  Nh4 {[%clk 0:01:31]} 21. Qg3 {[%clk 0:00:57]}  Nf5 {[%clk 0:01:30]} 22. Qf3 {[%clk 0:00:44]} 1/2-1/2


[Site "https://www.chess.com"]

[Event "Titled Tuesday Blitz November 22 Early 2022"]
[White "Nugumanov, Bakhtiyar"]
[Black "Fiol, Fabrice"]
[WhiteFideId "13701797"]
[BlackFideId "611670"]
[WhiteElo "2287"]
[BlackElo "2452"]
[Result "0-1"]
[Round "08"]
[TimeControl "180+1"]
[Date "2022.11.23"]
[WhiteClock "0:00:01"]
[BlackClock "0:00:09"]

1. Nf3 {[%clk 0:02:58]}  d5 {[%clk 0:02:58]} 2. g3 {[%clk 0:02:58]}  g6 {[%clk 0:02:57]} 3. Bg2 {[%clk 0:02:59]}  Bg7 {[%clk 0:02:58]} 4. c4 {[%clk 0:02:58]}  e6 {[%clk 0:02:57]} 5. d4 {[%clk 0:02:59]}  Ne7 {[%clk 0:02:57]} 6. O-O {[%clk 0:03:00]}  O-O {[%clk 0:02:57]} 7. b3 {[%clk 0:03:00]}  b6 {[%clk 0:02:57]} 8. Bb2 {[%clk 0:03:00]}  Bb7 {[%clk 0:02:57]} 9. Nc3 {[%clk 0:03:00]}  Nd7 {[%clk 0:02:58]} 10. Rc1 {[%clk 0:02:51]}  a6 {[%clk 0:02:57]} 11. e3 {[%clk 0:02:44]}  c5 {[%clk 0:02:43]} 12. Qe2 {[%clk 0:02:40]}  Rc8 {[%clk 0:02:34]} 13. Rfd1 {[%clk 0:02:38]}  Re8 {[%clk 0:02:30]} 14. Rd2 {[%clk 0:01:33]}  cxd4 {[%clk 0:02:22]} 15. exd4 {[%clk 0:01:34]}  dxc4 {[%clk 0:02:17]} 16. bxc4 {[%clk 0:01:34]}  Qc7 {[%clk 0:02:08]} 17. Ne4 {[%clk 0:01:33]}  Rcd8 {[%clk 0:01:48]} 18. h3 {[%clk 0:01:23]}  Nf6 {[%clk 0:01:44]} 19. Ne5 {[%clk 0:01:14]}  Nxe4 {[%clk 0:01:41]} 20. Bxe4 {[%clk 0:01:09]}  Bxe4 {[%clk 0:01:40]} 21. Nxf7 {[%clk 0:01:04]}  Kxf7 {[%clk 0:01:38]} 22. Qxe4 {[%clk 0:01:05]}  Nf5 {[%clk 0:01:26]} 23. Kh2 {[%clk 0:00:34]}  Kg8 {[%clk 0:01:24]} 24. c5 {[%clk 0:00:28]}  b5 {[%clk 0:01:22]} 25. Rcd1 {[%clk 0:00:24]}  Rd5 {[%clk 0:01:20]} 26. f4 {[%clk 0:00:20]}  h5 {[%clk 0:01:15]} 27. g4 {[%clk 0:00:20]}  hxg4 {[%clk 0:00:59]} 28. hxg4 {[%clk 0:00:21]}  Nh6 {[%clk 0:00:58]} 29. Kg3 {[%clk 0:00:21]}  g5 {[%clk 0:00:53]} 30. Rf1 {[%clk 0:00:14]}  gxf4+ {[%clk 0:00:15]} 31. Qxf4 {[%clk 0:00:14]}  Qxf4+ {[%clk 0:00:14]} 32. Rxf4 {[%clk 0:00:15]}  Nf7 {[%clk 0:00:12]} 33. Rdf2 {[%clk 0:00:14]}  Re7 {[%clk 0:00:11]} 34. c6 {[%clk 0:00:13]}  Rc7 {[%clk 0:00:10]} 35. Rc2 {[%clk 0:00:06]}  Bf8 {[%clk 0:00:10]} 36. g5 {[%clk 0:00:04]}  Bd6 {[%clk 0:00:10]} 37. Kf3 {[%clk 0:00:04]}  Bxf4 {[%clk 0:00:10]} 38. Kxf4 {[%clk 0:00:05]}  Rxg5 {[%clk 0:00:10]} 39. Ba3 {[%clk 0:00:03]}  Rd5 {[%clk 0:00:09]} 40. Bc5 {[%clk 0:00:03]}  e5+ {[%clk 0:00:08]} 41. Ke4 {[%clk 0:00:03]}  Rxc5 {[%clk 0:00:08]} 42. Rxc5 {[%clk 0:00:03]}  exd4 {[%clk 0:00:08]} 43. Kd5 {[%clk 0:00:03]}  Nd8 {[%clk 0:00:08]} 44. Kd6 {[%clk 0:00:03]}  Rxc6+ {[%clk 0:00:09]} 45. Rxc6 {[%clk 0:00:01]}  Nxc6 {[%clk 0:00:09]} 0-1


[Site "https://www.chess.com"]

[Event "Titled Tuesday Blitz November 22 Early 2022"]
[White "Ostrovskiy, Aleksandr"]
[Black "Chernov, Mikhail"]
[WhiteFideId "2034239"]
[BlackFideId "24143170"]
[WhiteElo "2340"]
[BlackElo "2113"]
[Result "1-0"]
[Round "08"]
[TimeControl "180+1"]
[Date "2022.11.23"]
[WhiteClock "0:00:07"]
[BlackClock "0:00:04"]

1. e4 {[%clk 0:03:00]}  c5 {[%clk 0:02:59]} 2. Nc3 {[%clk 0:02:59]}  Nc6 {[%clk 0:03:00]} 3. Bb5 {[%clk 0:02:58]}  Nd4 {[%clk 0:03:00]} 4. Nf3 {[%clk 0:02:58]}  Nxb5 {[%clk 0:02:59]} 5. Nxb5 {[%clk 0:02:58]}  a6 {[%clk 0:03:00]} 6. Nc3 {[%clk 0:02:58]}  b5 {[%clk 0:03:01]} 7. d4 {[%clk 0:02:58]}  cxd4 {[%clk 0:02:56]} 8. Qxd4 {[%clk 0:02:58]}  Bb7 {[%clk 0:02:55]} 9. Bg5 {[%clk 0:02:57]}  d6 {[%clk 0:02:46]} 10. O-O-O {[%clk 0:02:56]}  Nf6 {[%clk 0:02:38]} 11. e5 {[%clk 0:02:44]}  dxe5 {[%clk 0:02:36]} 12. Qxe5 {[%clk 0:02:44]}  Qb8 {[%clk 0:02:30]} 13. Qe2 {[%clk 0:02:23]}  e6 {[%clk 0:02:19]} 14. Ne5 {[%clk 0:02:21]}  Be7 {[%clk 0:02:13]} 15. Kb1 {[%clk 0:02:05]}  Qc7 {[%clk 0:01:18]} 16. Nxb5 {[%clk 0:01:49]}  axb5 {[%clk 0:01:09]} 17. Qxb5+ {[%clk 0:01:48]}  Kf8 {[%clk 0:01:09]} 18. Nd7+ {[%clk 0:01:29]}  Kg8 {[%clk 0:00:47]} 19. Nxf6+ {[%clk 0:01:23]}  Bxf6 {[%clk 0:00:39]} 20. Bxf6 {[%clk 0:01:20]}  gxf6 {[%clk 0:00:39]} 21. Rd3 {[%clk 0:00:51]}  Bd5 {[%clk 0:00:33]} 22. b3 {[%clk 0:00:42]}  Kf8 {[%clk 0:00:29]} 23. Qb4+ {[%clk 0:00:30]}  Qe7 {[%clk 0:00:28]} 24. Qd4 {[%clk 0:00:26]}  Qa7 {[%clk 0:00:22]} 25. Qb4+ {[%clk 0:00:21]}  Ke8 {[%clk 0:00:19]} 26. a4 {[%clk 0:00:19]}  Rb8 {[%clk 0:00:15]} 27. Qf4 {[%clk 0:00:17]}  Ke7 {[%clk 0:00:08]} 28. Rxd5 {[%clk 0:00:09]}  exd5 {[%clk 0:00:07]} 29. Re1+ {[%clk 0:00:09]}  Kd7 {[%clk 0:00:04]} 30. Qxf6 {[%clk 0:00:09]}  Rhe8 {[%clk 0:00:04]} 31. Qxf7+ {[%clk 0:00:07]}  Kc6 {[%clk 0:00:03]} 32. Qxa7 {[%clk 0:00:05]}  Rxe1+ {[%clk 0:00:02]} 33. Kb2 {[%clk 0:00:06]}  Ree8 {[%clk 0:00:03]} 34. Qa6+ {[%clk 0:00:06]}  Kc5 {[%clk 0:00:03]} 35. Qd3 {[%clk 0:00:05]}  d4 {[%clk 0:00:03]} 36. Qxh7 {[%clk 0:00:05]}  Rbd8 {[%clk 0:00:03]} 37. Qd3 {[%clk 0:00:06]}  Re7 {[%clk 0:00:03]} 38. Qb5+ {[%clk 0:00:06]}  Kd6 {[%clk 0:00:03]} 39. a5 {[%clk 0:00:05]}  Re5 {[%clk 0:00:03]} 40. Qb6+ {[%clk 0:00:05]}  Kd7 {[%clk 0:00:03]} 41. a6 {[%clk 0:00:06]}  Re6 {[%clk 0:00:03]} 42. Qb7+ {[%clk 0:00:06]}  Ke8 {[%clk 0:00:04]} 43. a7 {[%clk 0:00:06]}  Re7 {[%clk 0:00:04]} 44. a8=Q {[%clk 0:00:07]}  Rxb7 {[%clk 0:00:04]} 45. Qxb7 {[%clk 0:00:07]} 1-0


[Site "https://www.chess.com"]

[Event "Titled Tuesday Blitz November 22 Early 2022"]
[White "Ozen, Bahadir"]
[Black "Hristodoulou, Panagiotis"]
[WhiteFideId "6337058"]
[BlackFideId "4214340"]
[WhiteElo "2503"]
[BlackElo "2272"]
[Result "1-0"]
[Round "08"]
[TimeControl "180+1"]
[Date "2022.11.22"]
[WhiteClock "0:00:37"]
[BlackClock "0:00:02"]

1. g3 {[%clk 0:03:00]}  d5 {[%clk 0:02:25]} 2. Nf3 {[%clk 0:03:00]}  Nf6 {[%clk 0:02:24]} 3. Bg2 {[%clk 0:03:00]}  c6 {[%clk 0:02:23]} 4. O-O {[%clk 0:03:00]}  Bg4 {[%clk 0:02:23]} 5. h3 {[%clk 0:03:01]}  Bxf3 {[%clk 0:02:22]} 6. Bxf3 {[%clk 0:03:02]}  Nbd7 {[%clk 0:02:22]} 7. d3 {[%clk 0:03:02]}  e5 {[%clk 0:02:17]} 8. e4 {[%clk 0:03:02]}  dxe4 {[%clk 0:02:16]} 9. dxe4 {[%clk 0:03:03]}  Bc5 {[%clk 0:02:16]} 10. Qe2 {[%clk 0:03:01]}  O-O {[%clk 0:02:13]} 11. Nd2 {[%clk 0:03:01]}  Re8 {[%clk 0:02:13]} 12. Nb3 {[%clk 0:02:59]}  Bf8 {[%clk 0:02:09]} 13. Be3 {[%clk 0:02:58]}  Qc7 {[%clk 0:02:09]} 14. a4 {[%clk 0:02:57]}  a5 {[%clk 0:02:03]} 15. Rfd1 {[%clk 0:02:53]}  Be7 {[%clk 0:01:40]} 16. c3 {[%clk 0:02:51]}  Nf8 {[%clk 0:01:35]} 17. Qc4 {[%clk 0:02:46]}  Ne6 {[%clk 0:01:30]} 18. Bg2 {[%clk 0:02:46]}  Red8 {[%clk 0:01:17]} 19. Qe2 {[%clk 0:02:17]}  Nd7 {[%clk 0:01:10]} 20. h4 {[%clk 0:02:10]}  Ndc5 {[%clk 0:01:05]} 21. Nxc5 {[%clk 0:02:10]}  Bxc5 {[%clk 0:01:05]} 22. Bd2 {[%clk 0:02:11]}  Rd6 {[%clk 0:01:01]} 23. Be1 {[%clk 0:02:08]}  Rad8 {[%clk 0:01:00]} 24. Bh3 {[%clk 0:02:02]}  Rxd1 {[%clk 0:00:59]} 25. Rxd1 {[%clk 0:02:02]}  Rxd1 {[%clk 0:01:00]} 26. Qxd1 {[%clk 0:02:03]}  Ba7 {[%clk 0:00:54]} 27. Bxe6 {[%clk 0:01:34]}  fxe6 {[%clk 0:00:55]} 28. Kg2 {[%clk 0:01:31]}  Bc5 {[%clk 0:00:29]} 29. Qh5 {[%clk 0:00:52]}  g6 {[%clk 0:00:09]} 30. Qg4 {[%clk 0:00:51]}  Qd7 {[%clk 0:00:10]} 31. h5 {[%clk 0:00:50]}  Kg7 {[%clk 0:00:09]} 32. Qe2 {[%clk 0:00:45]}  b5 {[%clk 0:00:07]} 33. Bd2 {[%clk 0:00:42]}  Bb6 {[%clk 0:00:03]} 34. h6+ {[%clk 0:00:36]}  Kg8 {[%clk 0:00:03]} 35. Bg5 {[%clk 0:00:37]}  Bd8 {[%clk 0:00:01]} 36. Bxd8 {[%clk 0:00:36]}  Qxd8 {[%clk 0:00:02]} 37. axb5 {[%clk 0:00:37]} 1-0


[Site "https://www.chess.com"]

[Event "Titled Tuesday Blitz November 22 Early 2022"]
[White "Pajeken, Jakob Leon"]
[Black "Stijve, Theo"]
[WhiteFideId "12942839"]
[BlackFideId "1331132"]
[WhiteElo "2429"]
[BlackElo "2256"]
[Result "0-1"]
[Round "08"]
[TimeControl "180+1"]
[Date "2022.11.23"]
[WhiteClock "0:01:01"]
[BlackClock "0:00:18"]

1. d4 {[%clk 0:03:00]}  d5 {[%clk 0:02:58]} 2. Nf3 {[%clk 0:02:54]}  Nf6 {[%clk 0:02:57]} 3. Bf4 {[%clk 0:02:55]}  c5 {[%clk 0:02:56]} 4. e3 {[%clk 0:02:55]}  Nc6 {[%clk 0:02:56]} 5. Nbd2 {[%clk 0:02:56]}  cxd4 {[%clk 0:02:51]} 6. exd4 {[%clk 0:02:56]}  Qb6 {[%clk 0:02:49]} 7. Nb3 {[%clk 0:02:52]}  Bf5 {[%clk 0:02:47]} 8. Bd3 {[%clk 0:02:50]}  Bxd3 {[%clk 0:02:47]} 9. Qxd3 {[%clk 0:02:51]}  e6 {[%clk 0:02:47]} 10. O-O {[%clk 0:02:49]}  Be7 {[%clk 0:02:46]} 11. c3 {[%clk 0:02:43]}  O-O {[%clk 0:02:45]} 12. Rfe1 {[%clk 0:02:43]}  a5 {[%clk 0:02:41]} 13. Qe2 {[%clk 0:02:39]}  a4 {[%clk 0:02:39]} 14. Nc1 {[%clk 0:02:39]}  Ne4 {[%clk 0:02:34]} 15. a3 {[%clk 0:02:29]}  Na5 {[%clk 0:02:28]} 16. Nd3 {[%clk 0:02:28]}  Nc4 {[%clk 0:02:16]} 17. Nfe5 {[%clk 0:02:27]}  Qb5 {[%clk 0:02:02]} 18. Nb4 {[%clk 0:02:20]}  Ned6 {[%clk 0:01:49]} 19. Ng4 {[%clk 0:02:16]}  Nb6 {[%clk 0:01:40]} 20. Nh6+ {[%clk 0:02:12]}  gxh6 {[%clk 0:01:24]} 21. Qg4+ {[%clk 0:02:12]}  Kh8 {[%clk 0:01:24]} 22. Bxh6 {[%clk 0:02:13]}  Rg8 {[%clk 0:01:23]} 23. Qf4 {[%clk 0:02:13]}  Nbc4 {[%clk 0:01:08]} 24. Re5 {[%clk 0:01:55]}  Rg6 {[%clk 0:00:57]} 25. Nxd5 {[%clk 0:01:46]}  Nxe5 {[%clk 0:00:44]} 26. Qxe5+ {[%clk 0:01:45]}  f6 {[%clk 0:00:32]} 27. Qxe6 {[%clk 0:01:45]}  Rxh6 {[%clk 0:00:28]} 28. Nxe7 {[%clk 0:01:44]}  Re8 {[%clk 0:00:22]} 29. Qxd6 {[%clk 0:01:37]}  Qe2 {[%clk 0:00:20]} 30. h3 {[%clk 0:01:23]}  Qxe7 {[%clk 0:00:20]} 31. Qf4 {[%clk 0:01:22]}  Rg6 {[%clk 0:00:20]} 32. Rd1 {[%clk 0:01:22]}  Reg8 {[%clk 0:00:19]} 33. g3 {[%clk 0:01:22]}  Re8 {[%clk 0:00:20]} 34. d5 {[%clk 0:01:19]}  Qe4 {[%clk 0:00:20]} 35. Qc7 {[%clk 0:01:13]}  Rg7 {[%clk 0:00:19]} 36. Qd6 {[%clk 0:01:12]}  Qf3 {[%clk 0:00:19]} 37. Rf1 {[%clk 0:01:07]}  Rge7 {[%clk 0:00:18]} 38. Qb4 {[%clk 0:01:02]}  Re1 {[%clk 0:00:17]} 39. Qd4 {[%clk 0:01:01]}  Rxf1+ {[%clk 0:00:17]} 40. Kxf1 {[%clk 0:01:01]}  Qh1# {[%clk 0:00:18]} 0-1


[Site "https://www.chess.com"]

[Event "Titled Tuesday Blitz November 22 Early 2022"]
[White "Paravyan, David"]
[Black "Seo, Jung Min"]
[WhiteFideId "4194985"]
[BlackFideId "1734687"]
[WhiteElo "2546"]
[BlackElo "2455"]
[Result "1-0"]
[Round "08"]
[TimeControl "180+1"]
[Date "2022.11.22"]
[WhiteClock "0:00:04"]
[BlackClock "0:00:06"]

1. e4 {[%clk 0:03:00]}  e5 {[%clk 0:02:59]} 2. Nf3 {[%clk 0:03:00]}  Nc6 {[%clk 0:02:59]} 3. Nc3 {[%clk 0:03:01]}  Nf6 {[%clk 0:02:59]} 4. d4 {[%clk 0:03:01]}  exd4 {[%clk 0:02:59]} 5. Nxd4 {[%clk 0:03:02]}  Bb4 {[%clk 0:02:59]} 6. Nxc6 {[%clk 0:03:02]}  bxc6 {[%clk 0:02:59]} 7. Bd3 {[%clk 0:03:03]}  O-O {[%clk 0:02:59]} 8. O-O {[%clk 0:03:02]}  d5 {[%clk 0:03:00]} 9. exd5 {[%clk 0:03:03]}  cxd5 {[%clk 0:03:00]} 10. h3 {[%clk 0:03:01]}  c6 {[%clk 0:02:57]} 11. Re1 {[%clk 0:03:00]}  Re8 {[%clk 0:02:56]} 12. Bg5 {[%clk 0:02:59]}  Rxe1+ {[%clk 0:02:55]} 13. Qxe1 {[%clk 0:03:00]}  Be6 {[%clk 0:02:51]} 14. Bxf6 {[%clk 0:03:00]}  gxf6 {[%clk 0:02:31]} 15. Qe3 {[%clk 0:03:00]}  Qf8 {[%clk 0:02:21]} 16. Ne2 {[%clk 0:02:33]}  Bc5 {[%clk 0:02:21]} 17. Nd4 {[%clk 0:02:30]}  Bxd4 {[%clk 0:01:59]} 18. Qxd4 {[%clk 0:02:29]}  Qg7 {[%clk 0:02:00]} 19. Qh4 {[%clk 0:02:18]}  f5 {[%clk 0:01:52]} 20. Qb4 {[%clk 0:01:53]}  Qe5 {[%clk 0:01:33]} 21. Re1 {[%clk 0:01:51]}  Rb8 {[%clk 0:01:28]} 22. Rxe5 {[%clk 0:01:42]}  Rxb4 {[%clk 0:01:28]} 23. b3 {[%clk 0:01:43]}  Kg7 {[%clk 0:01:28]} 24. c3 {[%clk 0:01:18]}  Rb8 {[%clk 0:01:22]} 25. f4 {[%clk 0:01:18]}  Kf6 {[%clk 0:01:22]} 26. Kf2 {[%clk 0:01:13]}  h6 {[%clk 0:01:16]} 27. b4 {[%clk 0:01:10]}  c5 {[%clk 0:01:11]} 28. bxc5 {[%clk 0:01:10]}  Rc8 {[%clk 0:01:11]} 29. Ke3 {[%clk 0:01:04]}  Rxc5 {[%clk 0:01:11]} 30. c4 {[%clk 0:00:54]}  Ra5 {[%clk 0:01:04]} 31. g3 {[%clk 0:00:29]}  Rxa2 {[%clk 0:00:41]} 32. cxd5 {[%clk 0:00:28]}  Bd7 {[%clk 0:00:42]} 33. Kd4 {[%clk 0:00:19]}  Ra4+ {[%clk 0:00:39]} 34. Kc5 {[%clk 0:00:18]}  Ra3 {[%clk 0:00:39]} 35. Kd4 {[%clk 0:00:17]}  Ra4+ {[%clk 0:00:39]} 36. Kc5 {[%clk 0:00:17]}  Ra3 {[%clk 0:00:39]} 37. Bc4 {[%clk 0:00:11]}  Rxg3 {[%clk 0:00:35]} 38. Kd6 {[%clk 0:00:11]}  Bc8 {[%clk 0:00:32]} 39. Re8 {[%clk 0:00:08]}  Bb7 {[%clk 0:00:30]} 40. Rb8 {[%clk 0:00:08]}  Rc3 {[%clk 0:00:21]} 41. Bb5 {[%clk 0:00:08]}  Bxd5 {[%clk 0:00:18]} 42. Kxd5 {[%clk 0:00:07]}  Rxh3 {[%clk 0:00:18]} 43. Bc6 {[%clk 0:00:04]}  Rf3 {[%clk 0:00:13]} 44. Rb4 {[%clk 0:00:04]}  h5 {[%clk 0:00:14]} 45. Kd6 {[%clk 0:00:03]}  Rf2 {[%clk 0:00:14]} 46. Bd5 {[%clk 0:00:03]}  h4 {[%clk 0:00:12]} 47. Ra4 {[%clk 0:00:04]}  h3 {[%clk 0:00:11]} 48. Rxa7 {[%clk 0:00:04]}  Rxf4 {[%clk 0:00:12]} 49. Rxf7+ {[%clk 0:00:05]}  Kg5 {[%clk 0:00:12]} 50. Ke5 {[%clk 0:00:05]}  Rh4 {[%clk 0:00:08]} 51. Rg7+ {[%clk 0:00:05]}  Kh6 {[%clk 0:00:07]} 52. Rg1 {[%clk 0:00:02]}  h2 {[%clk 0:00:07]} 53. Rf1 {[%clk 0:00:03]}  f4 {[%clk 0:00:05]} 54. Kf5 {[%clk 0:00:02]}  Kg7 {[%clk 0:00:02]} 55. Bf3 {[%clk 0:00:02]}  Kf8 {[%clk 0:00:02]} 56. Kg5 {[%clk 0:00:03]}  Rh8 {[%clk 0:00:03]} 57. Kxf4 {[%clk 0:00:03]}  Ke7 {[%clk 0:00:04]} 58. Kg3 {[%clk 0:00:03]}  Kf6 {[%clk 0:00:05]} 59. Bg2+ {[%clk 0:00:02]}  Kg5 {[%clk 0:00:05]} 60. Bh3 {[%clk 0:00:03]}  Rb8 {[%clk 0:00:06]} 61. Rf5+ {[%clk 0:00:02]}  Kg6 {[%clk 0:00:06]} 62. Rf1 {[%clk 0:00:02]}  Rb2 {[%clk 0:00:07]} 63. Bg2 {[%clk 0:00:02]}  h1=Q {[%clk 0:00:07]} 64. Bxh1 {[%clk 0:00:02]}  Kg5 {[%clk 0:00:08]} 65. Be4 {[%clk 0:00:02]}  Rb3+ {[%clk 0:00:09]} 66. Bf3 {[%clk 0:00:03]}  Rc3 {[%clk 0:00:10]} 67. Rb1 {[%clk 0:00:03]}  Kf5 {[%clk 0:00:10]} 68. Rb5+ {[%clk 0:00:04]}  Ke6 {[%clk 0:00:10]} 69. Kf4 {[%clk 0:00:04]}  Kd6 {[%clk 0:00:11]} 70. Rd5+ {[%clk 0:00:03]}  Kc7 {[%clk 0:00:11]} 71. Be4 {[%clk 0:00:04]}  Kb6 {[%clk 0:00:12]} 72. Rd8 {[%clk 0:00:04]}  Kc5 {[%clk 0:00:12]} 73. Ke5 {[%clk 0:00:04]}  Kb4 {[%clk 0:00:11]} 74. Bd3 {[%clk 0:00:03]}  Rc7 {[%clk 0:00:10]} 75. Kd4 {[%clk 0:00:03]}  Rb7 {[%clk 0:00:10]} 76. Rc8 {[%clk 0:00:04]}  Rb6 {[%clk 0:00:09]} 77. Be4 {[%clk 0:00:04]}  Kb3 {[%clk 0:00:10]} 78. Bd5+ {[%clk 0:00:04]}  Kb2 {[%clk 0:00:10]} 79. Kd3 {[%clk 0:00:04]}  Rb5 {[%clk 0:00:07]} 80. Rc2+ {[%clk 0:00:04]}  Ka3 {[%clk 0:00:07]} 81. Bc4 {[%clk 0:00:02]}  Rb6 {[%clk 0:00:07]} 82. Kd4 {[%clk 0:00:02]}  Kb4 {[%clk 0:00:07]} 83. Rb2+ {[%clk 0:00:03]}  Ka5 {[%clk 0:00:08]} 84. Ra2+ {[%clk 0:00:03]}  Kb4 {[%clk 0:00:08]} 85. Bd5 {[%clk 0:00:03]}  Rh6 {[%clk 0:00:07]} 86. Rb2+ {[%clk 0:00:04]}  Ka3 {[%clk 0:00:07]} 87. Rb3+ {[%clk 0:00:04]}  Ka4 {[%clk 0:00:08]} 88. Kc5 {[%clk 0:00:05]}  Rh5 {[%clk 0:00:07]} 89. Rb2 {[%clk 0:00:05]}  Rh3 {[%clk 0:00:06]} 90. Rb8 {[%clk 0:00:04]}  Ka3 {[%clk 0:00:06]} 91. Rb7 {[%clk 0:00:03]}  Rg3 {[%clk 0:00:06]} 92. Kd4 {[%clk 0:00:03]}  Rh3 {[%clk 0:00:06]} 93. Bc4 {[%clk 0:00:03]}  Rg3 {[%clk 0:00:05]} 94. Bd3 {[%clk 0:00:04]}  Ka2 {[%clk 0:00:06]} 95. Kc3 {[%clk 0:00:04]} 1-0


[Site "https://www.chess.com"]

[Event "Titled Tuesday Blitz November 22 Early 2022"]
[White "Pultinevicius, Paulius"]
[Black "Korchmar, Vasiliy"]
[WhiteFideId "12809390"]
[BlackFideId "24131750"]
[WhiteElo "2493"]
[BlackElo "2370"]
[Result "1-0"]
[Round "08"]
[TimeControl "180+1"]
[Date "2022.11.22"]
[WhiteClock "0:01:36"]
[BlackClock "0:00:01"]

1. c3 {[%clk 0:03:00]}  d5 {[%clk 0:02:59]} 2. d4 {[%clk 0:03:01]}  Nf6 {[%clk 0:02:59]} 3. Bf4 {[%clk 0:03:01]}  c5 {[%clk 0:02:58]} 4. dxc5 {[%clk 0:03:02]}  e6 {[%clk 0:02:51]} 5. b4 {[%clk 0:03:02]}  a5 {[%clk 0:02:47]} 6. a3 {[%clk 0:02:57]}  axb4 {[%clk 0:02:21]} 7. cxb4 {[%clk 0:02:42]}  b6 {[%clk 0:02:19]} 8. Bxb8 {[%clk 0:02:41]}  Rxb8 {[%clk 0:02:19]} 9. cxb6 {[%clk 0:02:42]}  Ne4 {[%clk 0:02:01]} 10. Nf3 {[%clk 0:02:42]}  Qxb6 {[%clk 0:01:29]} 11. e3 {[%clk 0:02:41]}  Be7 {[%clk 0:01:18]} 12. Bd3 {[%clk 0:02:40]}  Bf6 {[%clk 0:01:18]} 13. Ra2 {[%clk 0:02:40]}  Nc3 {[%clk 0:01:14]} 14. Nxc3 {[%clk 0:02:39]}  Bxc3+ {[%clk 0:01:15]} 15. Nd2 {[%clk 0:02:32]}  d4 {[%clk 0:00:43]} 16. O-O {[%clk 0:02:31]}  dxe3 {[%clk 0:00:41]} 17. Nc4 {[%clk 0:02:31]}  exf2+ {[%clk 0:00:40]} 18. Raxf2 {[%clk 0:02:31]}  Qd4 {[%clk 0:00:32]} 19. Nd6+ {[%clk 0:02:28]}  Ke7 {[%clk 0:00:20]} 20. Nxf7 {[%clk 0:02:24]}  Rf8 {[%clk 0:00:16]} 21. Kh1 {[%clk 0:02:23]}  Bb7 {[%clk 0:00:15]} 22. Qe2 {[%clk 0:02:06]}  Rbd8 {[%clk 0:00:14]} 23. Ng5 {[%clk 0:02:06]}  Bd5 {[%clk 0:00:03]} 24. Rf7+ {[%clk 0:02:00]}  Rxf7 {[%clk 0:00:03]} 25. Rxf7+ {[%clk 0:02:00]}  Kd6 {[%clk 0:00:04]} 26. Ne4+ {[%clk 0:01:55]}  Bxe4 {[%clk 0:00:04]} 27. Bxe4 {[%clk 0:01:56]}  Bd2 {[%clk 0:00:02]} 28. Qa6+ {[%clk 0:01:56]}  Ke5 {[%clk 0:00:02]} 29. Bxh7 {[%clk 0:01:45]}  Qa1+ {[%clk 0:00:02]} 30. Rf1 {[%clk 0:01:44]}  Qc3 {[%clk 0:00:01]} 31. Qa5+ {[%clk 0:01:42]}  Rd5 {[%clk 0:00:01]} 32. Qa7 {[%clk 0:01:38]}  Qc4 {[%clk 0:00:01]} 33. Qxg7+ {[%clk 0:01:36]} 1-0


[Site "https://www.chess.com"]